bitfinex/quotes_SOLUSD_20220114
["timestamp","ask_amount","ask_price","bid_price","bid_amount"]
[1642140258419,6.06429997,149.12,149.08,3.53863404]
[1642140258820,12.31429997,149.12,149.08,3.53863404]
[1642140259022,12.31429997,149.12,149.02,5.04049579]
[1642140259221,10.066,149.07,149.02,5.04049579]
[1642140259619,2.683,149.06,149.02,5.04049579]
[1642140260023,8.933,149.06,149.02,5.04049579]
[1642140260624,10.067,149.04,149.01,2.682]
[1642140261024,10.317,149.04,149.01,2.682]
[1642140261325,6.06429997,149.03,149.01,2.682]
[1642140262524,6.06429997,149.03,148.96,19.8471]
[1642140262824,6.06429997,149.03,148.96,20.0971]
[1642140263427,16.13219997,149.03,148.96,10.03]
[1642140264029,16.13219997,149.03,148.97,3.8503673]
[1642140264428,6.06429997,149.03,148.97,4.1003673]
[1642140264627,6.06429997,149.03,148.97,0.25]
[1642140265627,6.06429997,149.03,148.96,10.03]
[1642140265827,6.06429997,149.03,148.97,2.684]
[1642140266026,6.06429997,149.03,148.97,2.934]
[1642140266228,6.06429997,149.03,148.97,13.0005]
[1642140267028,10.067,149.05,148.97,19.0005]
[1642140267228,27.6778,149.06,148.97,13.0005]
[1642140267428,27.9278,149.06,148.97,13.0005]
[1642140268031,27.9278,149.06,148.97,19.0005]
[1642140268236,27.9278,149.06,148.97,13.0005]
[1642140269237,37.9936,149.06,148.97,13.0005]
[1642140271640,37.9936,149.06,148.97,10.3165]
[1642140273639,37.9936,149.06,148.97,20.0965]
[1642140273840,37.9936,149.06,148.97,10.03]
[1642140274239,43.9936,149.06,148.97,10.03]
[1642140274444,37.9936,149.06,148.97,10.03]
[1642140274941,37.9936,149.06,148.97,0.25]
[1642140275340,37.9936,149.06,148.96,35.6687]
[1642140276141,37.9936,149.06,148.96,45.7358]
[1642140277544,43.9936,149.06,148.96,45.4858]
[1642140277748,43.9936,149.06,148.96,12.464]
[1642140277945,43.9936,149.06,148.92,9.78]
[1642140278343,9.78,149.05,148.92,9.78]
[1642140278543,2.684,149.04,148.92,9.78]
[1642140278776,10.0712,148.98,148.92,9.78]
[1642140279944,2.685,149.01,148.92,9.78]
[1642140280145,2.685,149.03,148.93,23.8011]
[1642140280448,27.5569,149.04,148.93,30.0511]
[1642140280646,27.5569,149.04,148.94,2.684]
[1642140280845,27.8069,149.04,148.94,12.752]
[1642140281058,27.8069,149.04,148.94,19.262]
[1642140281251,25.1229,149.04,148.94,19.262]
[1642140281448,35.1904,149.04,148.94,19.002]
[1642140281649,35.1904,149.04,148.94,2.934]
[1642140282664,10.0686,149.02,148.94,10.3183]
[1642140282867,0.25,149.02,148.94,12.7523]
[1642140283267,0.25,149.02,148.94,2.684]
[1642140283868,12.7535,149.01,148.93,37.71992173]
[1642140284067,13.0035,149.01,148.93,3.84982173]
[1642140284267,13.0035,149.01,148.93,4.09982173]
[1642140284967,13.0035,149.01,148.93,4.35982173]
[1642140285167,13.0035,149.01,148.93,0.51]
[1642140285370,13.0035,149.01,148.93,0.26]
[1642140285567,13.0035,149.01,148.92,33.239]
[1642140285970,13.0035,149.01,148.92,32.979]
[1642140286588,19.0035,149.01,148.92,32.979]
[1642140290101,19.0035,149.01,148.92,10.03]
[1642140290296,19.0035,149.01,148.92,9.78]
[1642140290497,19.0035,149.01,148.92,10.03]
[1642140291804,13.0035,149.01,148.92,16.29]
[1642140295301,19.0035,149.01,148.92,16.29]
[1642140297806,19.0035,149.01,148.92,10.03]
[1642140299707,19.0035,149.01,148.92,0.25]
[1642140299906,24.319,149.0,148.92,0.25]
[1642140300107,2.685,148.99,148.9,29.7046]
[1642140300507,2.935,148.99,148.9,29.9646]
[1642140301106,2.935,148.99,148.91,10.0706]
[1642140301507,2.935,148.99,148.91,16.5806]
[1642140303110,13.006,148.99,148.91,16.5806]
[1642140303312,10.321,148.99,148.91,16.5806]
[1642140304114,10.321,148.99,148.91,10.5806]
[1642140304314,10.321,148.99,148.91,16.5806]
[1642140304713,10.071,148.99,148.91,16.5806]
[1642140305138,2.685,149.0,148.91,16.5806]
[1642140305541,2.685,149.01,148.91,16.5806]
[1642140305942,2.935,149.01,148.91,16.5806]
[1642140306151,10.0705,149.0,148.91,16.5806]
[1642140306546,10.3205,149.0,148.91,16.5806]
[1642140308849,2.685,149.01,148.92,76.77]
[1642140309053,23.0951,149.04,148.95,37.40503185]
[1642140309449,23.0951,149.04,148.95,13.0019]
[1642140309850,29.0951,149.04,148.95,13.0019]
[1642140310051,29.0951,149.04,148.95,37.5252]
[1642140310255,39.163,149.04,148.95,37.5252]
[1642140310453,2.684,149.03,148.95,37.5252]
[1642140310853,8.684,149.03,148.95,37.5252]
[1642140311852,8.684,149.03,148.95,24.7733]
[1642140312053,18.7524,149.03,148.94,9.78]
[1642140312256,19.0024,149.03,148.91,9.78]
[1642140312553,24.6754,149.02,148.92,23.2107]
[1642140312754,2.685,149.01,148.92,23.2107]
[1642140312953,8.935,149.01,148.92,46.88742184]
[1642140313755,19.0047,149.01,148.92,46.88742184]
[1642140315457,19.0047,149.01,148.92,23.2107]
[1642140316860,19.0047,149.01,148.92,33.2806]
[1642140317760,19.0047,149.01,148.92,23.2107]
[1642140321065,19.0047,149.01,148.92,33.2806]
[1642140325496,18.7547,149.01,148.92,33.2806]
[1642140325696,2.685,149.01,148.93,9.78]
[1642140325899,24.6754,149.02,148.95,10.0679]
[1642140326097,24.6754,149.02,148.96,23.41964656]
[1642140326496,24.6754,149.02,148.96,23.66964656]
[1642140326698,2.685,149.06,148.96,23.66964656]
[1642140326898,2.685,149.06,148.96,39.99644656]
[1642140326899,26.2223,149.06,148.96,39.99644656]
[1642140327097,32.2223,149.06,148.96,39.99644656]
[1642140327706,26.2223,149.06,148.96,39.99644656]
[1642140327999,32.2223,149.06,148.96,39.73644656]
[1642140328200,42.2885,149.06,148.96,33.73644656]
[1642140329000,42.5385,149.06,148.96,33.99644656]
[1642140329400,42.5385,149.06,148.96,33.73644656]
[1642140329600,42.5385,149.06,148.96,39.99644656]
[1642140330001,39.8535,149.06,148.97,2.684]
[1642140330301,39.8535,149.06,148.98,10.0655]
[1642140330502,39.6035,149.06,148.98,10.5755]
[1642140330709,29.5373,149.06,148.98,10.3155]
[1642140330907,23.5373,149.06,148.98,10.5755]
[1642140331502,23.7873,149.06,148.98,10.5755]
[1642140333006,29.7873,149.06,148.98,10.5755]
[1642140333206,39.6036,149.06,148.98,10.5755]
[1642140333410,29.5373,149.06,148.98,10.5755]
[1642140334008,29.7873,149.06,148.98,10.5755]
[1642140334808,32.4713,149.06,148.98,10.5755]
[1642140335108,42.5374,149.06,148.98,10.5755]
[1642140335608,36.5374,149.06,148.98,10.5755]
[1642140336012,42.5374,149.06,148.98,10.5755]
[1642140336410,42.5374,149.06,148.97,23.3808]
[1642140336609,42.5374,149.06,148.91,5.77473259]
[1642140336610,42.5374,149.06,148.92,2.684]
[1642140336809,42.5374,149.06,148.92,35.957]
[1642140338009,42.5374,149.06,148.93,3.8516259]
[1642140338410,109.5274,149.06,148.93,4.1016259]
[1642140338615,42.5374,149.06,148.93,4.1016259]
[1642140338814,42.5374,149.06,148.93,0.25]
[1642140339213,42.5374,149.06,148.93,2.934]
[1642140339614,42.5374,149.06,148.93,9.194]
[1642140339813,42.5374,149.06,148.94,24.3492]
[1642140340012,42.5374,149.06,148.94,30.8592]
[1642140340213,42.5374,149.06,148.96,31.01954614]
[1642140340412,42.5374,149.06,148.96,55.07794614]
[1642140340617,8.684,149.06,148.96,61.58794614]
[1642140340818,8.684,149.06,148.96,71.36794614]
[1642140341115,10.0654,149.08,148.96,71.36794614]
[1642140341313,10.0654,149.08,148.97,2.684]
[1642140341513,10.0654,149.08,148.97,9.194]
[1642140341718,10.0654,149.08,148.97,19.2602]
[1642140342113,10.0654,149.08,148.97,29.0402]
[1642140342314,34.4756,149.1,148.97,29.0402]
[1642140342545,2.683,149.09,148.97,29.0402]
[1642140342917,2.933,149.09,148.97,29.0402]
[1642140344115,12.9972,149.09,148.97,29.0402]
[1642140344919,12.9972,149.09,149.0,10.0641]
[1642140345419,12.9972,149.09,149.0,16.5741]
[1642140346126,2.683,149.09,149.0,16.5741]
[1642140346325,22.637,149.14,149.01,9.78]
[1642140346326,2.683,149.12,149.01,9.78]
[1642140346523,49.6803,149.14,149.05,10.0611]
[1642140346722,6.0,149.12,149.05,10.0611]
[1642140346922,6.0,149.14,149.05,10.3111]
[1642140347123,2.682,149.15,149.05,16.5711]
[1642140347322,2.682,149.16,149.05,16.5711]
[1642140347524,2.682,149.16,149.06,2.682]
[1642140347722,33.3735,149.17,149.06,2.682]
[1642140347723,10.0593,149.17,149.09,10.0581]
[1642140348122,10.0593,149.17,149.06,26.2385]
[1642140348323,2.682,149.16,149.06,30.0665]
[1642140348523,12.7415,149.16,149.06,30.0665]
[1642140348722,10.0595,149.16,149.06,32.7485]
[1642140348925,2.682,149.15,149.06,30.0665]
[1642140349123,2.682,149.15,149.07,10.0593]
[1642140349322,23.6007,149.18,149.08,29.53988577]
[1642140349523,12.7408,149.17,149.08,35.78988577]
[1642140349722,16.4493505,149.17,149.08,44.39288577]
[1642140349924,16.4493505,149.17,149.08,38.39288577]
[1642140350160,22.4493505,149.17,149.08,38.39288577]
[1642140350352,6.3905505,149.17,149.08,48.71168577]
[1642140350552,6.3905505,149.17,149.08,54.71168577]
[1642140350750,3.7085505,149.18,149.09,2.682]
[1642140350954,3.7085505,149.18,149.09,85.962]
[1642140351352,3.7085505,149.18,149.12,10.0563]
[1642140351554,3.7085505,149.18,149.12,10.5663]
[1642140351952,2.682,149.2,149.12,10.5663]
[1642140352355,2.682,149.2,149.12,16.3063]
[1642140352554,2.682,149.2,149.12,10.3063]
[1642140353155,13.7652505,149.21,149.12,10.3063]
[1642140353958,3.7085505,149.22,149.12,16.5663]
[1642140354164,2.681,149.21,149.12,26.3463]
[1642140354364,3.7085505,149.22,149.15,10.054]
[1642140354560,3.7085505,149.22,149.15,16.564]
[1642140354760,3.7085505,149.22,149.15,10.304]
[1642140354963,6.3895505,149.23,149.15,10.304]
[1642140355360,12.6395505,149.23,149.15,10.304]
[1642140355560,6.6395505,149.23,149.15,10.304]
[1642140356260,16.6943505,149.23,149.15,10.304]
[1642140357662,16.6943505,149.23,149.15,0.25]
[1642140357861,22.6943505,149.23,149.15,0.25]
[1642140358061,22.6943505,149.23,149.14,0.25]
[1642140358464,22.6943505,149.23,149.13,2.681]
[1642140358662,22.6943505,149.23,149.12,9.78]
[1642140359766,10.0588,149.17,149.12,9.78]
[1642140359968,10.3088,149.17,149.12,9.78]
[1642140360369,0.25,149.17,149.12,9.78]
[1642140361170,12.6395505,149.2,149.12,9.78]
[1642140361568,8.931,149.2,149.12,9.78]
[1642140361869,8.681,149.2,149.12,9.78]
[1642140362071,2.681,149.2,149.12,10.03]
[1642140362870,3.7085505,149.21,149.12,10.03]
[1642140363469,27.8319505,149.22,149.12,10.03]
[1642140363670,27.8319505,149.22,149.12,12.711]
[1642140363868,27.8319505,149.22,149.12,18.711]
[1642140364072,10.0566,149.21,149.12,22.7674]
[1642140364471,10.3066,149.21,149.12,22.7674]
[1642140365376,12.9876,149.21,149.12,20.3464]
[1642140365574,12.9876,149.21,149.12,26.3464]
[1642140365777,2.931,149.21,149.12,26.3464]
[1642140366475,27.8319505,149.22,149.12,26.3464]
[1642140367076,37.8874505,149.22,149.12,26.3464]
[1642140368079,44.1374505,149.22,149.12,20.3464]
[1642140368279,44.1374505,149.22,149.12,20.0864]
[1642140369180,2.681,149.21,149.12,20.0864]
[1642140369382,10.0571,149.2,149.12,20.0864]
[1642140369583,10.3071,149.2,149.12,9.78]
[1642140369782,10.3071,149.2,149.11,2.681]
[1642140369980,2.681,149.19,149.1,24.9969]
[1642140370185,2.681,149.19,149.1,25.2469]
[1642140370382,8.931,149.19,149.09,9.78]
[1642140370580,8.931,149.19,149.09,10.03]
[1642140370985,10.0594,149.17,149.09,10.03]
[1642140371381,2.682,149.16,149.09,10.03]
[1642140371580,2.932,149.16,149.09,10.03]
[1642140371981,0.25,149.16,149.09,10.03]
[1642140372181,10.06,149.16,149.09,10.03]
[1642140372780,2.682,149.17,149.09,10.03]
[1642140372980,0.25,149.17,149.09,10.03]
[1642140373681,10.3089,149.17,149.09,20.0885]
[1642140373880,10.3089,149.17,149.09,10.03]
[1642140379521,1.92422794,149.16,149.09,10.03]
[1642140379722,1.92422794,149.16,149.09,20.0883]
[1642140380025,1.92422794,149.16,149.09,20.3483]
[1642140382634,11.98382794,149.16,149.09,10.03]
[1642140382827,12.23382794,149.16,149.09,10.03]
[1642140383626,1.92422794,149.15,149.09,10.03]
[1642140385428,2.17422794,149.15,149.09,10.03]
[1642140385827,1.92422794,149.15,149.09,10.03]
[1642140386029,2.17422794,149.15,149.09,0.25]
[1642140386428,2.17422794,149.15,149.08,10.309]
[1642140386729,1.92422794,149.15,149.08,10.309]
[1642140387029,1.92422794,149.14,149.08,10.309]
[1642140387831,1.92422794,149.15,149.08,10.309]
[1642140388229,1.92422794,149.15,149.08,26.349]
[1642140388930,1.92422794,149.16,149.08,26.349]
[1642140389131,1.92422794,149.16,149.1,10.0574]
[1642140389532,1.92422794,149.16,149.1,10.5674]
[1642140389732,1.92422794,149.17,149.1,10.3074]
[1642140390335,1.92422794,149.17,149.1,0.25]
[1642140390535,1.92422794,149.17,149.08,45.5038]
[1642140391833,11.98302794,149.17,149.08,45.5038]
[1642140392534,12.23302794,149.17,149.08,45.5038]
[1642140392935,1.92422794,149.17,149.08,51.7638]
[1642140393538,1.92422794,149.17,149.08,118.7538]
[1642140393736,1.92422794,149.17,149.08,51.7638]
[1642140393935,1.92422794,149.17,149.08,51.5038]
[1642140394135,1.92422794,149.17,149.08,47.40169716]
[1642140394340,2.17422794,149.17,149.08,47.40169716]
[1642140394935,1.92422794,149.16,149.08,42.8218]
[1642140395136,1.92422794,149.16,149.08,45.5038]
[1642140395336,1.92422794,149.16,149.08,45.7638]
[1642140395538,1.92422794,149.16,149.08,51.7638]
[1642140395940,1.92422794,149.17,149.08,51.7638]
[1642140396736,1.92422794,149.17,149.08,53.66169716]
[1642140398138,1.92422794,149.17,149.08,47.66169716]
[1642140398435,1.92422794,149.17,149.08,45.7638]
[1642140401038,1.92422794,149.17,149.08,51.7638]
[1642140401638,1.92422794,149.17,149.08,51.5038]
[1642140402040,1.92422794,149.17,149.08,45.5038]
[1642140403040,1.92422794,149.17,149.08,45.7638]
[1642140403940,1.92422794,149.17,149.08,45.5038]
[1642140404141,1.92422794,149.17,149.08,45.7638]
[1642140404742,7.92422794,149.17,149.08,45.7638]
[1642140405144,7.92422794,149.17,149.08,45.5038]
[1642140405344,7.92422794,149.17,149.08,45.7638]
[1642140406447,7.92422794,149.17,149.08,45.5038]
[1642140407447,7.92422794,149.17,149.08,45.7638]
[1642140407648,1.92422794,149.17,149.08,45.7638]
[1642140408048,1.92422794,149.17,149.08,51.7638]
[1642140410271,1.92422794,149.17,149.08,118.7538]
[1642140411172,1.92422794,149.17,149.08,51.7638]
[1642140411372,25.64312794,149.18,149.08,47.66169716]
[1642140411571,25.64312794,149.18,149.08,53.66169716]
[1642140412171,25.64312794,149.18,149.08,51.7638]
[1642140412172,1.92422794,149.17,149.08,51.7638]
[1642140412374,1.92422794,149.17,149.08,51.5038]
[1642140413177,1.92422794,149.17,149.08,53.40169716]
[1642140413976,1.92422794,149.17,149.08,53.66169716]
[1642140414577,1.92422794,149.17,149.08,51.7638]
[1642140416180,1.92422794,149.17,149.08,118.7538]
[1642140416378,23.7189,149.18,149.08,118.7538]
[1642140417882,29.7189,149.18,149.08,118.7538]
[1642140418383,1.92422794,149.17,149.08,120.65169716]
[1642140421594,25.64312794,149.18,149.08,53.66169716]
[1642140421891,6.0,149.17,149.08,53.15169716]
[1642140422093,2.682,149.16,149.08,40.68969716]
[1642140422491,8.932,149.16,149.08,34.68969716]
[1642140423392,1.92422794,149.15,149.08,33.0418]
[1642140423592,7.92422794,149.15,149.08,33.0418]
[1642140423791,1.92422794,149.15,149.08,33.0418]
[1642140426093,7.92422794,149.15,149.08,33.0418]
[1642140427194,7.92422794,149.15,149.08,10.3086]
[1642140427395,8.17422794,149.15,149.06,1.89789716]
[1642140427613,26.5596,149.14,149.06,1.89789716]
[1642140427801,10.0625,149.12,149.06,1.89789716]
[1642140427998,10.0625,149.12,149.05,1.89789716]
[1642140427999,2.682,149.11,149.05,1.89789716]
[1642140428204,9.47,149.11,149.05,1.89789716]
[1642140428401,15.72,149.11,149.05,1.89789716]
[1642140428998,15.72,149.11,149.02,1.89789716]
[1642140429802,24.198,149.1,149.02,1.89789716]
[1642140430002,2.683,149.09,149.02,1.89789716]
[1642140430406,2.683,149.09,149.0,1.89789716]
[1642140430407,10.85722794,149.09,149.0,1.89789716]
[1642140430801,10.85722794,149.09,149.0,2.14789716]
[1642140431001,4.85722794,149.09,149.0,2.14789716]
[1642140431201,10.0652,149.08,149.0,2.14789716]
[1642140431402,2.683,149.07,149.0,2.14789716]
[1642140431806,2.933,149.07,149.0,2.14789716]
[1642140432405,2.933,149.07,149.0,0.25]
[1642140432606,12.9989,149.07,149.0,0.25]
[1642140432809,12.9989,149.07,148.99,61.43421866]
[1642140434616,12.9989,149.07,148.99,51.65421866]
[1642140434912,10.3159,149.07,148.99,51.65421866]
[1642140439135,16.3159,149.07,148.99,51.65421866]
[1642140439337,10.3159,149.07,148.99,51.65421866]
[1642140439535,8.5659,149.07,148.99,51.65421866]
[1642140439737,14.5659,149.07,148.99,51.65421866]
[1642140440435,8.5659,149.07,148.99,51.65421866]
[1642140440634,14.5659,149.07,148.99,51.65421866]
[1642140441237,14.5659,149.07,148.99,27.46921866]
[1642140441436,8.5659,149.07,148.99,2.14789716]
[1642140441637,14.5659,149.07,148.99,1.89789716]
[1642140441838,2.684,149.06,148.99,1.89789716]
[1642140442135,10.0686,149.03,148.99,1.89789716]
[1642140442537,17.9876,149.03,148.97,2.684]
[1642140442736,2.684,149.02,148.92,5.77473259]
[1642140442937,18.714,149.02,148.92,5.77473259]
[1642140443139,10.0719,149.0,148.92,5.77473259]
[1642140443338,2.685,148.99,148.92,5.77473259]
[1642140443638,75.925,148.99,148.89,5.77473259]
[1642140444637,75.925,148.99,148.89,6.02473259]
[1642140444843,10.0731,148.96,148.89,6.02473259]
[1642140445041,16.3231,148.96,148.89,6.02473259]
[1642140445241,16.3231,148.96,148.89,0.25]
[1642140445441,16.3231,148.96,148.87,43.50785916]
[1642140446143,16.3231,148.96,148.87,14.17489709]
[1642140446344,16.3231,148.96,148.87,4.10199709]
[1642140446542,16.3231,148.96,148.88,3.85199709]
[1642140446947,16.3231,148.96,148.88,4.10199709]
[1642140447946,10.0731,148.96,148.88,4.10199709]
[1642140448145,37.5497,148.98,148.88,4.10199709]
[1642140448344,34.8637,148.98,148.88,4.10199709]
[1642140448945,34.8637,148.98,148.88,0.25]
[1642140449148,34.8637,148.98,148.88,10.0727]
[1642140449345,0.02,148.96,148.88,10.0727]
[1642140449546,0.04,148.96,148.88,13.0087]
[1642140449948,0.04,148.96,148.89,3.85239995]
[1642140450345,0.04,148.96,148.89,4.10239995]
[1642140450948,0.04,148.96,148.89,0.25]
[1642140451147,10.1132,148.96,148.89,0.25]
[1642140451545,16.3632,148.96,148.86,20.1035]
[1642140451746,2.686,148.95,148.86,20.1035]
[1642140451946,8.936,148.95,148.86,20.1035]
[1642140452749,2.936,148.95,148.86,20.1035]
[1642140452949,0.25,148.95,148.86,20.1035]
[1642140453149,10.324,148.95,148.86,20.1035]
[1642140453550,16.324,148.95,148.86,20.1035]
[1642140453749,16.324,148.95,148.87,3.85283076]
[1642140453955,19.01,148.95,148.87,4.10283076]
[1642140454450,19.01,148.95,148.87,0.25]
[1642140455254,19.01,148.95,148.86,20.1035]
[1642140455454,16.324,148.95,148.86,20.1035]
[1642140456455,16.324,148.95,148.87,3.85282336]
[1642140456755,19.01,148.95,148.87,3.85282336]
[1642140456958,19.01,148.95,148.87,14.17592336]
[1642140456959,2.936,148.95,148.87,14.17592336]
[1642140457560,0.25,148.95,148.87,14.17592336]
[1642140457957,0.04,148.96,148.87,10.3231]
[1642140458157,12.7597,148.95,148.87,0.25]
[1642140458557,19.0097,148.95,148.86,10.03]
[1642140459759,0.25,148.95,148.86,20.1039]
[1642140460061,23.9033,148.96,148.86,20.3639]
[1642140460259,0.02,148.95,148.87,2.686]
[1642140460462,0.02,148.95,148.87,3.196]
[1642140460658,0.04,148.95,148.87,7.04875951]
[1642140460860,0.04,148.95,148.9,30.57662633]
[1642140461061,0.04,148.95,148.9,30.82662633]
[1642140461261,0.04,148.95,148.9,0.25]
[1642140462262,0.04,148.95,148.9,10.0709]
[1642140462461,0.04,148.95,148.9,10.3209]
[1642140465860,0.04,148.95,148.9,0.25]
[1642140466062,0.04,148.95,148.88,62.27452287]
[1642140466463,0.04,148.95,148.88,34.365]
[1642140478811,0.04,148.95,148.88,24.2929]
[1642140484521,10.1137,148.95,148.88,24.2929]
[1642140484720,10.1137,148.95,148.88,24.0429]
[1642140484721,16.1137,148.95,148.88,24.0429]
[1642140484922,16.3637,148.95,148.88,24.0429]
[1642140485321,2.686,148.94,148.88,24.0429]
[1642140485522,8.936,148.94,148.88,24.0429]
[1642140486021,19.0105,148.94,148.88,24.0429]
[1642140486625,16.3245,148.94,148.88,24.0429]
[1642140486922,16.3245,148.94,148.87,9.78]
[1642140488125,19.0105,148.94,148.87,9.78]
[1642140488526,19.0105,148.94,148.87,10.03]
[1642140489649,16.3245,148.94,148.87,10.03]
[1642140491252,16.3445,148.94,148.87,10.03]
[1642140491453,16.3645,148.94,148.87,10.03]
[1642140491650,16.3645,148.94,148.87,9.78]
[1642140492052,2.686,148.93,148.85,22.8355]
[1642140492253,2.686,148.93,148.85,23.0855]
[1642140492551,8.936,148.93,148.85,23.0855]
[1642140492756,8.936,148.93,148.85,33.1602]
[1642140492952,8.936,148.93,148.85,33.4202]
[1642140493151,8.936,148.93,148.85,33.1602]
[1642140493354,6.25,148.93,148.85,33.1602]
[1642140493553,0.25,148.93,148.85,33.1602]
[1642140493752,16.3645,148.94,148.85,33.1602]
[1642140495454,16.3445,148.94,148.85,33.1602]
[1642140495654,16.3245,148.94,148.85,33.1602]
[1642140496456,0.04,148.93,148.85,33.1602]
[1642140499062,23.6002,148.93,148.85,33.1602]
[1642140499262,23.6002,148.93,148.85,32.9102]
[1642140499462,29.8502,148.93,148.85,32.9102]
[1642140499663,29.8502,148.93,148.86,3.85325431]
[1642140499862,32.5362,148.93,148.86,3.85325431]
[1642140500463,32.5362,148.93,148.85,32.9102]
[1642140500663,32.5362,148.93,148.85,33.1602]
[1642140502267,42.611,148.93,148.85,33.1602]
[1642140502472,32.2862,148.93,148.85,33.1602]
[1642140502669,8.726,148.93,148.85,33.1602]
[1642140502967,8.726,148.93,148.86,9.78]
[1642140503167,6.04,148.93,148.89,10.0718]
[1642140503571,6.04,148.93,148.89,10.3218]
[1642140503768,6.04,148.93,148.89,10.0718]
[1642140504168,0.04,148.93,148.89,10.0718]
[1642140504369,6.04,148.93,148.89,10.0718]
[1642140504572,6.29,148.93,148.89,10.0718]
[1642140504771,6.04,148.93,148.89,10.0718]
[1642140505575,0.04,148.93,148.87,33.0597]
[1642140505775,6.29,148.93,148.87,33.3097]
[1642140506375,0.29,148.93,148.87,33.3097]
[1642140506578,6.29,148.93,148.87,33.3097]
[1642140506979,0.29,148.93,148.87,33.3097]
[1642140507177,0.04,148.93,148.87,33.3097]
[1642140514319,0.04,148.93,148.87,23.2368]
[1642140530734,0.04,148.93,148.87,33.31]
[1642140532036,2.726,148.93,148.87,33.06]
[1642140532238,0.04,148.93,148.87,22.9868]
[1642140532436,6.29,148.93,148.87,22.9868]
[1642140533038,0.04,148.93,148.87,23.2368]
[1642140533239,6.04,148.93,148.87,23.2368]
[1642140533438,6.04,148.93,148.87,33.3101]
[1642140533885,0.04,148.93,148.87,33.3101]
[1642140534037,6.04,148.93,148.87,33.3101]
[1642140535450,0.04,148.93,148.87,33.3101]
[1642140543685,0.04,148.93,148.87,33.0601]
[1642140544989,0.04,148.93,148.87,33.3101]
[1642140550289,0.04,148.93,148.87,23.2368]
[1642140556101,0.04,148.93,148.86,10.074]
[1642140556302,10.1151,148.93,148.84,29.04344988]
[1642140556500,2.686,148.92,148.85,24.0377]
[1642140556999,8.936,148.92,148.85,24.0377]
[1642140558200,10.0765,148.91,148.85,24.0377]
[1642140558501,16.3265,148.91,148.85,24.0377]
[1642140561128,6.25,148.91,148.85,24.2877]
[1642140561332,6.0,148.91,148.85,24.0377]
[1642140561530,0.27,148.91,148.85,24.0377]
[1642140562027,0.02,148.91,148.85,24.0377]
[1642140562428,0.04,148.91,148.85,24.0377]
[1642140563728,0.04,148.91,148.85,25.9647956]
[1642140565130,10.1164,148.91,148.85,25.9647956]
[1642140565331,16.3664,148.91,148.85,25.9647956]
[1642140565532,16.3664,148.91,148.85,1.9270956]
[1642140567735,12.7631,148.9,148.85,1.9270956]
[1642140568034,19.0131,148.9,148.85,1.9270956]
[1642140568236,19.0131,148.9,148.84,1.9270956]
[1642140568836,8.936,148.9,148.84,1.9270956]
[1642140569636,6.25,148.9,148.84,1.9270956]
[1642140570437,8.936,148.9,148.84,1.9270956]
[1642140572537,8.956,148.9,148.84,1.9270956]
[1642140572737,8.976,148.9,148.84,1.9270956]
[1642140573539,6.29,148.9,148.84,1.9270956]
[1642140574444,0.29,148.9,148.84,1.9270956]
[1642140574638,0.04,148.9,148.84,1.9270956]
[1642140575843,0.04,148.9,148.84,2.1770956]
[1642140576242,0.04,148.9,148.84,1.6770956]
[1642140576651,0.04,148.9,148.84,0.25]
[1642140576843,0.04,148.9,148.83,33.238]